[Event "Titled Tuesday Blitz November 22 Late 2022"]
[White "Floresvillar Gonzalez, Luis Migu"]
[Black "Lopez Gracia, Fernando"]
[WhiteFideId "5100542"]
[BlackFideId "2207184"]
[WhiteElo "2040"]
[BlackElo "2461"]
[Result "0-1"]
[Round "04"]
[TimeControl "180+1"]
[Date "2022.11.23"]
[WhiteClock "0:00:01"]
[BlackClock "0:00:37"]

1. d4 {[%clk 0:03:00]}  Nf6 {[%clk 0:02:59]} 2. c3 {[%clk 0:03:00]}  b6 {[%clk 0:02:59]} 3. Bg5 {[%clk 0:03:00]}  Bb7 {[%clk 0:02:59]} 4. Nd2 {[%clk 0:02:59]}  e6 {[%clk 0:02:56]} 5. e4 {[%clk 0:02:57]}  h6 {[%clk 0:02:56]} 6. Bxf6 {[%clk 0:02:55]}  Qxf6 {[%clk 0:02:57]} 7. e5 {[%clk 0:02:53]}  Qd8 {[%clk 0:02:56]} 8. Ngf3 {[%clk 0:02:53]}  d6 {[%clk 0:02:57]} 9. exd6 {[%clk 0:02:14]}  Bxd6 {[%clk 0:02:58]} 10. Bd3 {[%clk 0:02:13]}  Nd7 {[%clk 0:02:58]} 11. Qe2 {[%clk 0:02:12]}  Nf6 {[%clk 0:02:57]} 12. Ne4 {[%clk 0:02:10]}  Be7 {[%clk 0:02:57]} 13. O-O {[%clk 0:02:06]}  O-O {[%clk 0:02:56]} 14. Ne5 {[%clk 0:02:05]}  Qd5 {[%clk 0:02:34]} 15. f3 {[%clk 0:02:00]}  c5 {[%clk 0:02:31]} 16. Bc4 {[%clk 0:01:42]}  Qd8 {[%clk 0:02:32]} 17. Rad1 {[%clk 0:01:38]}  Qc7 {[%clk 0:02:28]} 18. Nxf6+ {[%clk 0:01:33]}  Bxf6 {[%clk 0:02:26]} 19. f4 {[%clk 0:01:32]}  cxd4 {[%clk 0:02:20]} 20. cxd4 {[%clk 0:01:32]}  Rfd8 {[%clk 0:02:07]} 21. Nxf7 {[%clk 0:01:16]}  Rxd4 {[%clk 0:01:30]} 22. Bxe6 {[%clk 0:01:09]}  Kf8 {[%clk 0:01:30]} 23. f5 {[%clk 0:01:03]}  Qc5 {[%clk 0:01:15]} 24. Rxd4 {[%clk 0:01:00]}  Qxd4+ {[%clk 0:01:12]} 25. Kh1 {[%clk 0:01:01]}  Qxb2 {[%clk 0:01:12]} 26. Qxb2 {[%clk 0:01:00]}  Bxb2 {[%clk 0:01:13]} 27. Nd6 {[%clk 0:00:56]}  Ba6 {[%clk 0:01:11]} 28. Nc4 {[%clk 0:00:53]}  Bf6 {[%clk 0:01:09]} 29. Rd1 {[%clk 0:00:43]}  Re8 {[%clk 0:01:10]} 30. Ne3 {[%clk 0:00:41]}  Rd8 {[%clk 0:01:08]} 31. Rxd8+ {[%clk 0:00:40]}  Bxd8 {[%clk 0:01:09]} 32. Nc4 {[%clk 0:00:30]}  Bc7 {[%clk 0:01:05]} 33. g4 {[%clk 0:00:28]}  b5 {[%clk 0:01:05]} 34. Ne3 {[%clk 0:00:26]}  b4 {[%clk 0:01:06]} 35. Nd5 {[%clk 0:00:25]}  Bd6 {[%clk 0:01:05]} 36. Kg2 {[%clk 0:00:24]}  Bc4 {[%clk 0:01:04]} 37. Ne3 {[%clk 0:00:20]}  Bd3 {[%clk 0:00:59]} 38. Kf3 {[%clk 0:00:19]}  a5 {[%clk 0:00:58]} 39. h4 {[%clk 0:00:18]}  a4 {[%clk 0:00:58]} 40. g5 {[%clk 0:00:18]}  hxg5 {[%clk 0:00:57]} 41. hxg5 {[%clk 0:00:18]}  Bc5 {[%clk 0:00:52]} 42. Nd5 {[%clk 0:00:15]}  Bc4 {[%clk 0:00:49]} 43. Nf4 {[%clk 0:00:12]}  b3 {[%clk 0:00:36]} 44. axb3 {[%clk 0:00:10]}  a3 {[%clk 0:00:36]} 45. Ng6+ {[%clk 0:00:01]}  Ke8 {[%clk 0:00:37]} 0-1


[Site "https://www.chess.com"]

[Event "Titled Tuesday Blitz November 22 Late 2022"]
[White "Garcia Ramos, Daniel"]
[Black "Bach, Matthias"]
[WhiteFideId "32010311"]
[BlackFideId "4603168"]
[WhiteElo "2357"]
[BlackElo "2165"]
[Result "1-0"]
[Round "04"]
[TimeControl "180+1"]
[Date "2022.11.23"]
[WhiteClock "0:00:12"]
[BlackClock "0:00:19"]

1. e4 {[%clk 0:03:00]}  e5 {[%clk 0:02:58]} 2. Nf3 {[%clk 0:03:00]}  Nc6 {[%clk 0:02:55]} 3. Bc4 {[%clk 0:03:00]}  Nf6 {[%clk 0:02:54]} 4. d3 {[%clk 0:03:00]}  d6 {[%clk 0:02:50]} 5. O-O {[%clk 0:02:59]}  Be6 {[%clk 0:02:48]} 6. Nbd2 {[%clk 0:02:56]}  Be7 {[%clk 0:02:46]} 7. h3 {[%clk 0:02:56]}  Qd7 {[%clk 0:02:45]} 8. Re1 {[%clk 0:02:55]}  O-O-O {[%clk 0:02:45]} 9. Bxe6 {[%clk 0:02:48]}  fxe6 {[%clk 0:02:42]} 10. c3 {[%clk 0:02:42]}  h6 {[%clk 0:02:39]} 11. b4 {[%clk 0:02:41]}  Rdf8 {[%clk 0:02:36]} 12. a4 {[%clk 0:02:38]}  g5 {[%clk 0:02:35]} 13. a5 {[%clk 0:02:32]}  g4 {[%clk 0:02:34]} 14. hxg4 {[%clk 0:02:30]}  Nxg4 {[%clk 0:02:34]} 15. b5 {[%clk 0:02:31]}  Nd8 {[%clk 0:02:32]} 16. b6 {[%clk 0:02:25]}  cxb6 {[%clk 0:02:30]} 17. axb6 {[%clk 0:02:26]}  a6 {[%clk 0:02:30]} 18. Nc4 {[%clk 0:02:25]}  Bg5 {[%clk 0:02:19]} 19. d4 {[%clk 0:02:23]}  Nf7 {[%clk 0:01:56]} 20. Nxg5 {[%clk 0:02:14]}  Nxf2 {[%clk 0:01:51]} 21. Kxf2 {[%clk 0:02:10]}  hxg5 {[%clk 0:01:49]} 22. Ba3 {[%clk 0:00:56]}  Nd8+ {[%clk 0:01:39]} 23. Ke3 {[%clk 0:00:55]}  Rf4 {[%clk 0:01:19]} 24. dxe5 {[%clk 0:00:40]}  Qc6 {[%clk 0:01:04]} 25. Nxd6+ {[%clk 0:00:28]}  Kb8 {[%clk 0:01:03]} 26. Qd4 {[%clk 0:00:25]}  Rhh4 {[%clk 0:00:53]} 27. Kd3 {[%clk 0:00:18]}  Nf7 {[%clk 0:00:46]} 28. Nxf7 {[%clk 0:00:16]}  Qb5+ {[%clk 0:00:42]} 29. Kc2 {[%clk 0:00:14]}  Qe8 {[%clk 0:00:25]} 30. Qd8+ {[%clk 0:00:12]}  Qxd8 {[%clk 0:00:25]} 31. Nxd8 {[%clk 0:00:13]}  Rf2+ {[%clk 0:00:23]} 32. Kd3 {[%clk 0:00:13]}  Rg4 {[%clk 0:00:23]} 33. Nxe6 {[%clk 0:00:12]}  Rgxg2 {[%clk 0:00:21]} 34. Bd6+ {[%clk 0:00:11]}  Kc8 {[%clk 0:00:20]} 35. Nc5 {[%clk 0:00:11]}  Rd2+ {[%clk 0:00:19]} 36. Kc4 {[%clk 0:00:12]} 1-0


[Site "https://www.chess.com"]

[Event "Titled Tuesday Blitz November 22 Late 2022"]
[White "Gareyev, Timur"]
[Black "Osmak, Yuliia"]
[WhiteFideId "14200937"]
[BlackFideId "14101602"]
[WhiteElo "2552"]
[BlackElo "2328"]
[Result "1-0"]
[Round "04"]
[TimeControl "180+1"]
[Date "2022.11.23"]
[WhiteClock "0:00:11"]
[BlackClock "0:00:16"]

1. d4 {[%clk 0:02:52]}  d5 {[%clk 0:02:56]} 2. Nf3 {[%clk 0:02:52]}  Nf6 {[%clk 0:02:54]} 3. c4 {[%clk 0:02:52]}  c5 {[%clk 0:02:54]} 4. cxd5 {[%clk 0:02:50]}  cxd4 {[%clk 0:02:54]} 5. Nxd4 {[%clk 0:02:45]}  Qxd5 {[%clk 0:02:53]} 6. Nc3 {[%clk 0:02:44]}  Qa5 {[%clk 0:02:52]} 7. Nb3 {[%clk 0:02:37]}  Qc7 {[%clk 0:02:50]} 8. e4 {[%clk 0:02:32]}  e5 {[%clk 0:02:48]} 9. Nb5 {[%clk 0:02:26]}  Bb4+ {[%clk 0:02:44]} 10. Bd2 {[%clk 0:02:25]}  Qe7 {[%clk 0:02:39]} 11. Bxb4 {[%clk 0:02:11]}  Qxb4+ {[%clk 0:02:38]} 12. Qd2 {[%clk 0:02:11]}  Qxd2+ {[%clk 0:02:22]} 13. Kxd2 {[%clk 0:02:09]}  Nc6 {[%clk 0:02:17]} 14. Nc7+ {[%clk 0:02:08]}  Ke7 {[%clk 0:02:15]} 15. Nxa8 {[%clk 0:02:07]}  Nxe4+ {[%clk 0:01:57]} 16. Ke3 {[%clk 0:02:02]}  f5 {[%clk 0:01:56]} 17. Nc7 {[%clk 0:01:59]}  Nd6 {[%clk 0:01:44]} 18. Nd5+ {[%clk 0:01:55]}  Kf7 {[%clk 0:01:43]} 19. f3 {[%clk 0:01:39]}  Be6 {[%clk 0:01:40]} 20. Nc3 {[%clk 0:01:38]}  f4+ {[%clk 0:01:36]} 21. Kf2 {[%clk 0:01:38]}  Nf5 {[%clk 0:01:34]} 22. Rd1 {[%clk 0:01:35]}  Ne3 {[%clk 0:01:31]} 23. Rd2 {[%clk 0:01:33]}  Bxb3 {[%clk 0:01:27]} 24. axb3 {[%clk 0:01:33]}  Nd4 {[%clk 0:01:27]} 25. Bc4+ {[%clk 0:01:32]}  Kg6 {[%clk 0:01:18]} 26. Re1 {[%clk 0:01:30]}  a6 {[%clk 0:01:14]} 27. Nd1 {[%clk 0:01:17]}  Ndc2 {[%clk 0:01:09]} 28. Ree2 {[%clk 0:01:05]}  Nd4 {[%clk 0:01:09]} 29. Nxe3 {[%clk 0:01:02]}  Nxe2 {[%clk 0:01:09]} 30. Rd6+ {[%clk 0:01:01]}  Kh5 {[%clk 0:01:02]} 31. Nf5 {[%clk 0:00:45]}  Nd4 {[%clk 0:00:49]} 32. Nxg7+ {[%clk 0:00:38]}  Kg5 {[%clk 0:00:49]} 33. Ne6+ {[%clk 0:00:31]}  Nxe6 {[%clk 0:00:48]} 34. Rxe6 {[%clk 0:00:31]}  Kf5 {[%clk 0:00:46]} 35. g4+ {[%clk 0:00:31]}  fxg3+ {[%clk 0:00:46]} 36. hxg3 {[%clk 0:00:32]}  b5 {[%clk 0:00:43]} 37. Bd5 {[%clk 0:00:23]}  Rc8 {[%clk 0:00:37]} 38. Ke3 {[%clk 0:00:20]}  Rc1 {[%clk 0:00:32]} 39. g4+ {[%clk 0:00:19]}  Kg5 {[%clk 0:00:32]} 40. Rxe5+ {[%clk 0:00:20]}  Kh4 {[%clk 0:00:29]} 41. Kf4 {[%clk 0:00:20]}  Kh3 {[%clk 0:00:26]} 42. g5 {[%clk 0:00:18]}  Rc2 {[%clk 0:00:20]} 43. Re7 {[%clk 0:00:14]}  Rxb2 {[%clk 0:00:19]} 44. Rxh7+ {[%clk 0:00:14]}  Kg2 {[%clk 0:00:19]} 45. g6 {[%clk 0:00:15]}  Kf1 {[%clk 0:00:16]} 46. g7 {[%clk 0:00:15]}  Rg2 {[%clk 0:00:16]} 47. Rh1+ {[%clk 0:00:13]}  Kf2 {[%clk 0:00:16]} 48. Rh2 {[%clk 0:00:11]}  Rxh2 {[%clk 0:00:16]} 49. g8=Q {[%clk 0:00:11]} 1-0


[Site "https://www.chess.com"]

[Event "Titled Tuesday Blitz November 22 Late 2022"]
[White "Gonzalez, Francisco Silva"]
[Black "Ardila, Oscar Humberto"]
[WhiteFideId "1512285"]
[BlackFideId "4404742"]
[WhiteElo "2159"]
[BlackElo "1959"]
[Result "1-0"]
[Round "04"]
[TimeControl "180+1"]
[Date "2022.11.23"]
[WhiteClock "0:01:09"]
[BlackClock "0:00:12"]

1. d4 {[%clk 0:02:55]}  Nf6 {[%clk 0:02:54]} 2. c4 {[%clk 0:02:49]}  e6 {[%clk 0:02:54]} 3. Nc3 {[%clk 0:02:47]}  Bb4 {[%clk 0:02:54]} 4. a3 {[%clk 0:02:40]}  Bxc3+ {[%clk 0:02:54]} 5. bxc3 {[%clk 0:02:40]}  O-O {[%clk 0:02:55]} 6. e3 {[%clk 0:02:38]}  c5 {[%clk 0:02:54]} 7. Bd3 {[%clk 0:02:38]}  b6 {[%clk 0:02:54]} 8. e4 {[%clk 0:02:37]}  d6 {[%clk 0:02:49]} 9. Nf3 {[%clk 0:02:36]}  Bb7 {[%clk 0:02:43]} 10. Qe2 {[%clk 0:02:35]}  e5 {[%clk 0:02:21]} 11. d5 {[%clk 0:02:33]}  Nbd7 {[%clk 0:02:08]} 12. Bg5 {[%clk 0:02:30]}  Re8 {[%clk 0:02:08]} 13. Nd2 {[%clk 0:02:28]}  Nf8 {[%clk 0:02:09]} 14. h4 {[%clk 0:02:27]}  h6 {[%clk 0:02:09]} 15. Be3 {[%clk 0:02:26]}  Ng6 {[%clk 0:02:07]} 16. g3 {[%clk 0:02:26]}  Qe7 {[%clk 0:01:53]} 17. h5 {[%clk 0:02:25]}  Nf8 {[%clk 0:01:48]} 18. f3 {[%clk 0:02:21]}  N6h7 {[%clk 0:01:48]} 19. Kf2 {[%clk 0:02:14]}  Bc8 {[%clk 0:01:45]} 20. Kg2 {[%clk 0:02:14]}  f5 {[%clk 0:01:45]} 21. exf5 {[%clk 0:02:12]}  Qf6 {[%clk 0:01:39]} 22. Ne4 {[%clk 0:02:06]}  Qe7 {[%clk 0:01:38]} 23. g4 {[%clk 0:02:06]}  Nf6 {[%clk 0:01:38]} 24. Nxf6+ {[%clk 0:01:59]}  Qxf6 {[%clk 0:01:38]} 25. Be4 {[%clk 0:01:59]}  Nh7 {[%clk 0:01:36]} 26. Qd2 {[%clk 0:01:58]}  Ba6 {[%clk 0:01:33]} 27. Qd3 {[%clk 0:01:53]}  Ng5 {[%clk 0:01:28]} 28. a4 {[%clk 0:01:53]}  Nxe4 {[%clk 0:00:40]} 29. fxe4 {[%clk 0:01:52]}  Qe7 {[%clk 0:00:36]} 30. a5 {[%clk 0:01:48]}  Qc7 {[%clk 0:00:34]} 31. g5 {[%clk 0:01:46]}  hxg5 {[%clk 0:00:32]} 32. Bxg5 {[%clk 0:01:45]}  Kf7 {[%clk 0:00:27]} 33. Rhb1 {[%clk 0:01:34]}  Rh8 {[%clk 0:00:25]} 34. Qe2 {[%clk 0:01:34]}  bxa5 {[%clk 0:00:20]} 35. Kg3 {[%clk 0:01:26]}  Rab8 {[%clk 0:00:20]} 36. h6 {[%clk 0:01:16]}  Rxb1 {[%clk 0:00:18]} 37. Qh5+ {[%clk 0:01:15]}  Kg8 {[%clk 0:00:17]} 38. Qe8+ {[%clk 0:01:12]}  Kh7 {[%clk 0:00:17]} 39. Qg6+ {[%clk 0:01:11]}  Kg8 {[%clk 0:00:17]} 40. Rxb1 {[%clk 0:01:11]}  a4 {[%clk 0:00:13]} 41. Rb8+ {[%clk 0:01:10]}  Bc8 {[%clk 0:00:12]} 42. Rxc8+ {[%clk 0:01:10]}  Qxc8 {[%clk 0:00:12]} 43. Qxg7# {[%clk 0:01:09]} 1-0


[Site "https://www.chess.com"]

[Event "Titled Tuesday Blitz November 22 Late 2022"]
[White "Graif, William"]
[Black "Pino Perez, Lazaro"]
[WhiteFideId "2609835"]
[BlackFideId "3517055"]
[WhiteElo "2205"]
[BlackElo "2170"]
[Result "0-1"]
[Round "04"]
[TimeControl "180+1"]
[Date "2022.11.23"]
[WhiteClock "0:00:01"]
[BlackClock "0:00:16"]

1. e4 {[%clk 0:03:00]}  c5 {[%clk 0:02:59]} 2. Nc3 {[%clk 0:02:56]}  g6 {[%clk 0:02:58]} 3. Bc4 {[%clk 0:02:54]}  Bg7 {[%clk 0:02:58]} 4. h4 {[%clk 0:02:51]}  h5 {[%clk 0:02:47]} 5. Qf3 {[%clk 0:02:47]}  e6 {[%clk 0:02:40]} 6. d4 {[%clk 0:02:46]}  cxd4 {[%clk 0:02:39]} 7. Nb5 {[%clk 0:02:46]}  d5 {[%clk 0:02:00]} 8. exd5 {[%clk 0:02:40]}  exd5 {[%clk 0:02:00]} 9. Bxd5 {[%clk 0:01:39]}  Nf6 {[%clk 0:01:59]} 10. Bxb7 {[%clk 0:00:55]}  Qa5+ {[%clk 0:01:28]} 11. Bd2 {[%clk 0:00:49]}  Qxb5 {[%clk 0:01:28]} 12. Bxa8 {[%clk 0:00:44]}  O-O {[%clk 0:01:28]} 13. Ne2 {[%clk 0:00:28]}  Re8 {[%clk 0:01:12]} 14. Qd3 {[%clk 0:00:25]}  Qe5 {[%clk 0:01:12]} 15. Bf3 {[%clk 0:00:21]}  Ng4 {[%clk 0:01:05]} 16. g3 {[%clk 0:00:09]}  Ba6 {[%clk 0:01:01]} 17. Qe4 {[%clk 0:00:05]}  Qxe4 {[%clk 0:00:57]} 18. Bxe4 {[%clk 0:00:06]}  Rxe4 {[%clk 0:00:57]} 19. O-O-O {[%clk 0:00:05]}  Bxe2 {[%clk 0:00:35]} 20. Rde1 {[%clk 0:00:05]}  Ne5 {[%clk 0:00:26]} 21. f3 {[%clk 0:00:03]}  Nxf3 {[%clk 0:00:25]} 22. Rxe2 {[%clk 0:00:02]}  Rxe2 {[%clk 0:00:24]} 23. Bf4 {[%clk 0:00:03]}  Nd7 {[%clk 0:00:20]} 24. Kd1 {[%clk 0:00:03]}  Rf2 {[%clk 0:00:19]} 25. b3 {[%clk 0:00:02]}  Nf6 {[%clk 0:00:17]} 26. Kc1 {[%clk 0:00:01]}  Nd5 {[%clk 0:00:17]} 27. Rd1 {[%clk 0:00:01]}  Nb4 {[%clk 0:00:16]} 0-1


[Site "https://www.chess.com"]

[Event "Titled Tuesday Blitz November 22 Late 2022"]
[White "Granados Diaz, Maria Esther"]
[Black "Palencia Morales, Wilson Guillermo"]
[WhiteFideId "6101488"]
[BlackFideId "4401859"]
[WhiteElo "1872"]
[BlackElo "2160"]
[Result "0-1"]
[Round "04"]
[TimeControl "180+1"]
[Date "2022.11.23"]
[WhiteClock "0:00:14"]
[BlackClock "0:00:56"]

1. e4 {[%clk 0:02:54]}  c5 {[%clk 0:02:49]} 2. Nc3 {[%clk 0:02:53]}  Nc6 {[%clk 0:02:46]} 3. Bb5 {[%clk 0:02:53]}  Nd4 {[%clk 0:02:46]} 4. Nf3 {[%clk 0:02:53]}  Nxb5 {[%clk 0:02:46]} 5. Nxb5 {[%clk 0:02:54]}  d6 {[%clk 0:02:46]} 6. d4 {[%clk 0:02:53]}  a6 {[%clk 0:02:47]} 7. Nc3 {[%clk 0:02:52]}  cxd4 {[%clk 0:02:48]} 8. Qxd4 {[%clk 0:02:52]}  e5 {[%clk 0:02:49]} 9. Qd3 {[%clk 0:02:51]}  h6 {[%clk 0:02:49]} 10. Be3 {[%clk 0:02:50]}  Be6 {[%clk 0:02:49]} 11. O-O {[%clk 0:02:48]}  Rc8 {[%clk 0:02:49]} 12. Rfd1 {[%clk 0:02:48]}  Nf6 {[%clk 0:02:48]} 13. h3 {[%clk 0:02:48]}  Be7 {[%clk 0:02:48]} 14. Nd5 {[%clk 0:02:38]}  Bxd5 {[%clk 0:02:48]} 15. exd5 {[%clk 0:02:39]}  e4 {[%clk 0:02:48]} 16. Qd2 {[%clk 0:02:33]}  exf3 {[%clk 0:02:48]} 17. gxf3 {[%clk 0:02:34]}  O-O {[%clk 0:02:46]} 18. b3 {[%clk 0:02:34]}  Nh7 {[%clk 0:02:46]} 19. c4 {[%clk 0:02:34]}  Bg5 {[%clk 0:02:45]} 20. Rac1 {[%clk 0:02:34]}  Bxe3 {[%clk 0:02:45]} 21. fxe3 {[%clk 0:02:35]}  Qh4 {[%clk 0:02:43]} 22. Kh2 {[%clk 0:02:34]}  Rce8 {[%clk 0:02:40]} 23. f4 {[%clk 0:02:30]}  Nf6 {[%clk 0:02:36]} 24. Rg1 {[%clk 0:02:29]}  Ne4 {[%clk 0:02:31]} 25. Qd4 {[%clk 0:02:21]}  Qf2+ {[%clk 0:02:26]} 26. Rg2 {[%clk 0:02:20]}  Qxg2+ {[%clk 0:02:20]} 27. Kxg2 {[%clk 0:02:21]}  f5 {[%clk 0:02:19]} 28. Rg1 {[%clk 0:02:13]}  Rf7 {[%clk 0:02:19]} 29. Kf3 {[%clk 0:02:10]}  Rfe7 {[%clk 0:02:19]} 30. Ke2 {[%clk 0:01:48]}  b5 {[%clk 0:02:17]} 31. Rg6 {[%clk 0:01:40]}  b4 {[%clk 0:02:15]} 32. Re6 {[%clk 0:01:38]}  Rxe6 {[%clk 0:02:07]} 33. dxe6 {[%clk 0:01:39]}  Rxe6 {[%clk 0:01:59]} 34. Kd1 {[%clk 0:01:27]}  Kf7 {[%clk 0:01:55]} 35. Kc2 {[%clk 0:01:20]}  Nc5 {[%clk 0:01:55]} 36. Qd5 {[%clk 0:01:17]}  Kf6 {[%clk 0:01:51]} 37. Qd4+ {[%clk 0:01:15]}  Kf7 {[%clk 0:01:51]} 38. Kb2 {[%clk 0:01:10]}  g5 {[%clk 0:01:46]} 39. fxg5 {[%clk 0:01:05]}  hxg5 {[%clk 0:01:46]} 40. a3 {[%clk 0:01:05]}  a5 {[%clk 0:01:44]} 41. Qd5 {[%clk 0:00:58]}  Kf6 {[%clk 0:01:41]} 42. Qd4+ {[%clk 0:00:49]}  Kg6 {[%clk 0:01:40]} 43. h4 {[%clk 0:00:40]}  gxh4 {[%clk 0:01:27]} 44. Qxh4 {[%clk 0:00:38]}  Rxe3 {[%clk 0:01:26]} 45. axb4 {[%clk 0:00:31]}  Rxb3+ {[%clk 0:01:25]} 46. Kc2 {[%clk 0:00:29]}  axb4 {[%clk 0:01:24]} 47. Qd8 {[%clk 0:00:29]}  Rc3+ {[%clk 0:01:23]} 48. Kb2 {[%clk 0:00:28]}  Rd3 {[%clk 0:01:14]} 49. Qg8+ {[%clk 0:00:25]}  Kh5 {[%clk 0:01:10]} 50. Qh7+ {[%clk 0:00:20]}  Kg4 {[%clk 0:01:10]} 51. Qg7+ {[%clk 0:00:20]}  Kf3 {[%clk 0:01:08]} 52. Qg1 {[%clk 0:00:18]}  f4 {[%clk 0:01:07]} 53. Qf1+ {[%clk 0:00:17]}  Ke4 {[%clk 0:01:06]} 54. Qe1+ {[%clk 0:00:17]}  Kd4 {[%clk 0:01:03]} 55. Qf2+ {[%clk 0:00:17]}  Ke5 {[%clk 0:01:02]} 56. Qe1+ {[%clk 0:00:17]}  Re3 {[%clk 0:01:02]} 57. Qd1 {[%clk 0:00:15]}  Nd3+ {[%clk 0:00:59]} 58. Ka1 {[%clk 0:00:13]}  Re1 {[%clk 0:00:57]} 59. Qxe1+ {[%clk 0:00:12]}  Nxe1 {[%clk 0:00:58]} 60. Kb2 {[%clk 0:00:13]}  Kd4 {[%clk 0:00:56]} 61. Kb3 {[%clk 0:00:14]}  Kc5 {[%clk 0:00:56]} 0-1


[Site "https://www.chess.com"]

[Event "Titled Tuesday Blitz November 22 Late 2022"]
[White "Gritsenko, Nikolai"]
[Black "Ibadov, Dashgyn"]
[WhiteFideId "14112493"]
[BlackFideId "24107514"]
[WhiteElo "2389"]
[BlackElo "2208"]
[Result "1/2-1/2"]
[Round "04"]
[TimeControl "180+1"]
[Date "2022.11.23"]
[WhiteClock "0:00:11"]
[BlackClock "0:00:12"]

1. d4 {[%clk 0:03:00]}  Nf6 {[%clk 0:02:58]} 2. Bg5 {[%clk 0:03:00]}  Ne4 {[%clk 0:02:57]} 3. h4 {[%clk 0:02:59]}  d5 {[%clk 0:02:54]} 4. Nd2 {[%clk 0:02:59]}  Nxd2 {[%clk 0:02:51]} 5. Qxd2 {[%clk 0:02:59]}  Nd7 {[%clk 0:02:51]} 6. e3 {[%clk 0:02:52]}  Nf6 {[%clk 0:02:51]} 7. Bxf6 {[%clk 0:02:52]}  exf6 {[%clk 0:02:51]} 8. c4 {[%clk 0:02:40]}  h5 {[%clk 0:02:33]} 9. Rc1 {[%clk 0:02:23]}  c6 {[%clk 0:02:29]} 10. Nf3 {[%clk 0:02:20]}  Bg4 {[%clk 0:02:28]} 11. cxd5 {[%clk 0:02:12]}  Qxd5 {[%clk 0:02:27]} 12. Bc4 {[%clk 0:02:10]}  Qd6 {[%clk 0:02:24]} 13. Qa5 {[%clk 0:01:53]}  Be7 {[%clk 0:02:09]} 14. a3 {[%clk 0:01:47]}  O-O {[%clk 0:02:08]} 15. Nh2 {[%clk 0:01:39]}  b6 {[%clk 0:01:23]} 16. Qd2 {[%clk 0:01:33]}  Bf5 {[%clk 0:01:02]} 17. Qe2 {[%clk 0:01:29]}  g6 {[%clk 0:01:00]} 18. g4 {[%clk 0:01:20]}  hxg4 {[%clk 0:00:56]} 19. Nxg4 {[%clk 0:01:18]}  Kg7 {[%clk 0:00:53]} 20. h5 {[%clk 0:01:14]}  gxh5 {[%clk 0:00:41]} 21. Nh6 {[%clk 0:00:48]}  Bg6 {[%clk 0:00:34]} 22. Rxh5 {[%clk 0:00:36]}  Rh8 {[%clk 0:00:19]} 23. Nf5+ {[%clk 0:00:36]}  Bxf5 {[%clk 0:00:18]} 24. Rxf5 {[%clk 0:00:36]}  Rh1+ {[%clk 0:00:14]} 25. Kd2 {[%clk 0:00:35]}  Rxc1 {[%clk 0:00:15]} 26. Kxc1 {[%clk 0:00:35]}  Rh8 {[%clk 0:00:10]} 27. Qg4+ {[%clk 0:00:30]}  Kf8 {[%clk 0:00:10]} 28. Rf3 {[%clk 0:00:29]}  b5 {[%clk 0:00:08]} 29. Bb3 {[%clk 0:00:28]}  c5 {[%clk 0:00:08]} 30. Qc8+ {[%clk 0:00:26]}  Qd8 {[%clk 0:00:06]} 31. Qxd8+ {[%clk 0:00:25]}  Bxd8 {[%clk 0:00:06]} 32. dxc5 {[%clk 0:00:25]}  Rh5 {[%clk 0:00:06]} 33. Bc2 {[%clk 0:00:22]}  Rxc5 {[%clk 0:00:05]} 34. Rf5 {[%clk 0:00:22]}  Rxf5 {[%clk 0:00:03]} 35. Bxf5 {[%clk 0:00:22]}  a5 {[%clk 0:00:04]} 36. Kc2 {[%clk 0:00:20]}  b4 {[%clk 0:00:04]} 37. axb4 {[%clk 0:00:20]}  axb4 {[%clk 0:00:05]} 38. Kb3 {[%clk 0:00:21]}  Be7 {[%clk 0:00:05]} 39. Kc4 {[%clk 0:00:21]}  Kg7 {[%clk 0:00:06]} 40. b3 {[%clk 0:00:20]}  Bd6 {[%clk 0:00:05]} 41. Be4 {[%clk 0:00:19]}  Be7 {[%clk 0:00:05]} 42. Bf3 {[%clk 0:00:18]}  Bd6 {[%clk 0:00:06]} 43. Bh5 {[%clk 0:00:18]}  Be7 {[%clk 0:00:06]} 44. Kd5 {[%clk 0:00:18]}  Bf8 {[%clk 0:00:06]} 45. f4 {[%clk 0:00:18]}  Be7 {[%clk 0:00:06]} 46. Kc6 {[%clk 0:00:17]}  Bf8 {[%clk 0:00:03]} 47. e4 {[%clk 0:00:16]}  Be7 {[%clk 0:00:04]} 48. f5 {[%clk 0:00:16]}  Bd8 {[%clk 0:00:04]} 49. Kd7 {[%clk 0:00:15]}  Bb6 {[%clk 0:00:04]} 50. Ke8 {[%clk 0:00:16]}  Bd4 {[%clk 0:00:04]} 51. Bxf7 {[%clk 0:00:16]}  Be5 {[%clk 0:00:05]} 52. Bd5 {[%clk 0:00:14]}  Bc3 {[%clk 0:00:05]} 53. Kd7 {[%clk 0:00:14]}  Be5 {[%clk 0:00:06]} 54. Kc6 {[%clk 0:00:14]}  Bc3 {[%clk 0:00:06]} 55. Kc5 {[%clk 0:00:14]}  Kf8 {[%clk 0:00:07]} 56. Kc4 {[%clk 0:00:13]}  Ke7 {[%clk 0:00:07]} 57. Kc5 {[%clk 0:00:12]}  Bd2 {[%clk 0:00:06]} 58. Kd4 {[%clk 0:00:11]}  Kd6 {[%clk 0:00:06]} 59. Kd3 {[%clk 0:00:10]}  Bc3 {[%clk 0:00:06]} 60. Kc4 {[%clk 0:00:10]}  Ke5 {[%clk 0:00:06]} 61. Kb5 {[%clk 0:00:10]}  Be1 {[%clk 0:00:07]} 62. Kc6 {[%clk 0:00:10]}  Bc3 {[%clk 0:00:08]} 63. Kd7 {[%clk 0:00:10]}  Be1 {[%clk 0:00:08]} 64. Ke7 {[%clk 0:00:10]}  Bc3 {[%clk 0:00:09]} 65. Kd7 {[%clk 0:00:10]}  Be1 {[%clk 0:00:10]} 66. Kc6 {[%clk 0:00:10]}  Bc3 {[%clk 0:00:11]} 67. Kb5 {[%clk 0:00:10]}  Be1 {[%clk 0:00:12]} 68. Kc4 {[%clk 0:00:10]}  Bc3 {[%clk 0:00:12]} 69. Kb5 {[%clk 0:00:11]} 1/2-1/2


[Site "https://www.chess.com"]

[Event "Titled Tuesday Blitz November 22 Late 2022"]
[White "Gurevich, Dmitry"]
[Black "Drygalov, Andrey"]
[WhiteFideId "2000407"]
[BlackFideId "24171735"]
[WhiteElo "2506"]
[BlackElo "2472"]
[Result "0-1"]
[Round "04"]
[TimeControl "180+1"]
[Date "2022.11.23"]
[WhiteClock "0:00:08"]
[BlackClock "0:01:18"]

1. d4 {[%clk 0:03:00]}  Nf6 {[%clk 0:02:58]} 2. c4 {[%clk 0:02:59]}  e6 {[%clk 0:02:58]} 3. Nf3 {[%clk 0:02:58]}  d5 {[%clk 0:02:58]} 4. Nc3 {[%clk 0:02:58]}  c6 {[%clk 0:02:59]} 5. e3 {[%clk 0:02:55]}  Nbd7 {[%clk 0:02:58]} 6. Qc2 {[%clk 0:02:55]}  Bd6 {[%clk 0:02:58]} 7. b3 {[%clk 0:02:55]}  O-O {[%clk 0:02:58]} 8. Be2 {[%clk 0:02:55]}  b6 {[%clk 0:02:58]} 9. O-O {[%clk 0:02:54]}  Bb7 {[%clk 0:02:58]} 10. Bb2 {[%clk 0:02:54]}  Qe7 {[%clk 0:02:57]} 11. Rad1 {[%clk 0:02:53]}  Rad8 {[%clk 0:02:57]} 12. Rfe1 {[%clk 0:02:52]}  Rfe8 {[%clk 0:02:58]} 13. g3 {[%clk 0:02:51]}  c5 {[%clk 0:02:58]} 14. cxd5 {[%clk 0:02:47]}  exd5 {[%clk 0:02:59]} 15. Bf1 {[%clk 0:02:38]}  Rc8 {[%clk 0:02:58]} 16. Bg2 {[%clk 0:02:30]}  cxd4 {[%clk 0:02:57]} 17. Nxd4 {[%clk 0:02:28]}  Bb4 {[%clk 0:02:57]} 18. Rc1 {[%clk 0:02:06]}  Ne4 {[%clk 0:02:56]} 19. Qd3 {[%clk 0:01:35]}  Ndc5 {[%clk 0:02:47]} 20. Qb1 {[%clk 0:01:28]}  Nxb3 {[%clk 0:02:33]} 21. Nf5 {[%clk 0:00:49]}  Qg5 {[%clk 0:02:16]} 22. Nxg7 {[%clk 0:00:35]}  Bxc3 {[%clk 0:01:32]} 23. Nxe8 {[%clk 0:00:26]}  Nxc1 {[%clk 0:01:30]} 24. Bxc3 {[%clk 0:00:18]}  Nxc3 {[%clk 0:01:27]} 25. Qb2 {[%clk 0:00:11]}  Nd3 {[%clk 0:01:26]} 26. Qa3 {[%clk 0:00:08]}  Nxe1 {[%clk 0:01:18]} 0-1


[Site "https://www.chess.com"]